bitfinex-derivatives/quotes_ETHF0:USTF0_20250314
["timestamp","ask_amount","ask_price","bid_price","bid_amount"]
[1741929878414,3.87765,1894.9,1894.8,1.30932246]
[1741929879318,2.118,1894.9,1894.8,1.30932246]
[1741929880117,2.118,1894.9,1894.8,2.36503246]
[1741929880325,2.118,1894.9,1894.8,1.30932246]
[1741929880626,3.17365,1894.9,1894.8,1.30932246]
[1741929884326,2.118,1894.9,1894.8,1.30932246]
[1741929884628,1.4043,1894.9,1894.8,2.36503246]
[1741929885027,0.72812246,1895.1,1894.9,1.05563]
[1741929885224,2.13032246,1895.1,1895.0,1.428]
[1741929885426,2.13032246,1895.1,1895.0,2.1386]
[1741929886127,3.18586246,1895.1,1895.0,2.1386]
[1741929887228,2.13032246,1895.1,1895.0,2.1386]
[1741929888325,2.13032246,1895.1,1895.0,3.19419]
[1741929888530,2.13032246,1895.1,1895.0,2.796]
[1741929888829,3.18586246,1895.1,1895.0,2.796]
[1741929892430,2.13032246,1895.1,1895.0,3.85159]
[1741929892934,1.41012246,1895.1,1895.0,3.85159]
[1741929893333,2.46566246,1895.1,1895.0,2.796]
[1741929894033,1.41012246,1895.1,1895.0,3.85159]
[1741929894337,1.41012246,1895.1,1895.0,2.796]
[1741929894526,1.41012246,1895.1,1895.0,3.85159]
[1741929895437,1.41012246,1895.1,1895.0,2.796]
[1741929895626,2.46566246,1895.1,1895.0,2.796]
[1741929895828,1.41012246,1895.1,1895.0,3.85159]
[1741929898940,2.46566246,1895.1,1895.0,2.796]
[1741929900338,2.46566246,1895.1,1895.0,2.1386]
[1741929901033,1.41012246,1895.1,1895.0,2.1386]
[1741929901641,2.46566246,1895.1,1895.0,2.1386]
[1741929901939,1.41012246,1895.1,1895.0,2.1386]
[1741929902138,2.46566246,1895.1,1895.0,2.1386]
[1741929902342,1.41012246,1895.1,1895.0,2.1386]
[1741929902636,2.46566246,1895.1,1895.0,2.1386]
[1741929903138,1.41012246,1895.1,1895.0,2.1386]
[1741929903334,2.46566246,1895.1,1895.0,1.428]
[1741929904041,1.41012246,1895.1,1895.0,2.48359]
[1741929904342,1.41012246,1895.1,1895.0,1.428]
[1741929904635,1.41012246,1895.1,1895.0,2.1474]
[1741929904842,1.41012246,1895.1,1895.0,3.20299]
[1741929905231,0.00792246,1895.1,1895.0,3.20299]
[1741929905437,1.13807176,1895.4,1895.0,3.20299]
[1741929905636,1.3739,1895.5,1895.2,3.2078]
[1741929905831,2.42924,1895.5,1895.3,2.8502]
[1741929906140,2.42924,1895.5,1895.4,1.4231]
[1741929906341,6.1376,1895.6,1895.4,1.4231]
[1741929906541,1.05532,1895.5,1895.4,1.4231]
[1741929906742,1.71822,1895.5,1895.4,1.4231]
[1741929907242,1.05539,1895.4,1895.2,4.26327]
[1741929907444,1.05539,1895.4,1895.3,1.4231]
[1741929907830,0.6629,1895.5,1895.3,1.4231]
[1741929908042,1.71824,1895.5,1895.3,3.18761]
[1741929908239,1.71824,1895.5,1895.4,1.3826]
[1741929908739,7.19288,1895.6,1895.4,1.3826]
[1741929909745,3.8936,1895.6,1895.4,2.43795]
[1741929910042,3.8936,1895.6,1895.4,1.3826]
[1741929910248,3.8936,1895.6,1895.5,1.3826]
[1741929910743,4.94886,1895.6,1895.5,1.3826]
[1741929912338,1.74106,1895.6,1895.5,1.3826]
[1741929912645,0.6858,1895.6,1895.5,2.43792]
[1741929913539,1.71813,1895.7,1895.5,2.43792]
[1741929913739,3.96213,1895.7,1895.6,1.3181]
[1741929917441,6.1147,1895.7,1895.3,1.3662]
[1741929917647,1.05535,1895.5,1895.4,1.395]
[1741929921148,6.1147,1895.7,1895.4,1.395]
[1741929921460,1.05532,1895.5,1895.4,1.395]
[1741929923953,2.37171,1895.6,1895.4,1.395]
[1741929924249,1.3164,1895.6,1895.4,1.395]
[1741929924449,1.3651,1895.5,1895.4,2.45037]
[1741929926057,2.42042,1895.5,1895.4,2.45037]
[1741929926356,2.42042,1895.5,1895.4,1.395]
[1741929932558,1.3651,1895.5,1895.4,1.395]
[1741929934261,1.05529,1895.6,1895.4,2.45037]
[1741929934458,2.43889,1895.6,1895.4,2.45037]
[1741929934655,2.43889,1895.6,1895.5,1.407]
[1741929935661,1.3836,1895.6,1895.5,1.407]
[1741929935862,1.3836,1895.6,1895.5,2.46232]
[1741929936656,1.3836,1895.6,1895.5,1.407]
[1741929936959,2.43886,1895.6,1895.5,2.46232]
[1741929937162,1.3836,1895.6,1895.5,2.46232]
[1741929937562,2.43886,1895.6,1895.5,2.46232]
[1741929939157,1.3836,1895.6,1895.5,2.46232]
[1741929939363,0.6595,1895.8,1895.5,1.407]
[1741929939557,2.4427,1895.7,1895.6,3.74684]
[1741929939759,1.3875,1895.7,1895.6,1.3609]
[1741929939965,1.05517,1895.8,1895.6,2.41614]
[1741929940260,2.44267,1895.8,1895.6,2.41614]
[1741929940855,1.3875,1895.7,1895.6,2.41614]
[1741929941056,2.4427,1895.7,1895.6,1.3609]
[1741929941359,1.3875,1895.7,1895.6,1.3609]
[1741929941563,2.4427,1895.7,1895.6,1.3609]
[1741929943272,1.3875,1895.7,1895.6,2.41616]
[1741929943560,1.3875,1895.7,1895.6,1.3609]
[1741929944165,1.3875,1895.7,1895.6,2.41616]
[1741929945966,1.3875,1895.7,1895.6,1.3609]
[1741929946365,1.3875,1895.7,1895.6,2.41616]
[1741929946667,5.59889,1895.8,1895.6,2.41616]
[1741929946860,1.3359,1895.7,1895.6,2.41616]
[1741929947968,3.2078,1895.8,1895.6,2.41616]
[1741929948166,4.593,1895.8,1895.6,2.41616]
[1741929948361,5.64816,1895.8,1895.6,2.41616]
[1741929948867,1.3852,1895.7,1895.6,2.41616]
[1741929949769,2.4404,1895.7,1895.6,1.3609]
[1741929952367,2.4404,1895.7,1895.4,1.3307]
[1741929952368,1.05528,1895.6,1895.4,1.3307]
[1741929952565,3.76258,1895.6,1895.4,3.05006]
[1741929952966,2.44448,1895.6,1895.5,1.3307]
[1741929955873,1.3892,1895.6,1895.5,1.3307]
[1741929956073,0.6763,1895.6,1895.5,2.38602]
[1741929956263,0.6763,1895.6,1895.5,1.3307]
[1741929956874,1.73156,1895.6,1895.5,1.3307]
[1741929958373,1.05526,1895.6,1895.5,1.3307]
[1741929967573,2.243,1895.6,1895.2,3.2078]
[1741929967884,1.75432,1895.5,1895.4,1.3218]
[1741929969980,1.05532,1895.5,1895.4,1.3218]
[1741929982385,2.40512,1895.5,1895.4,1.3218]
[1741929982686,2.63844,1895.4,1894.9,3.2078]
[1741929982889,4.5577,1895.3,1895.1,1.4359]
[1741929983088,1.05548,1895.2,1895.1,1.4359]
[1741929983388,1.3498,1895.2,1895.1,1.4359]
[1741929984883,2.40528,1895.2,1895.1,1.4359]
[1741929987087,3.06948,1895.2,1895.1,1.4359]
[1741929988192,3.74868,1895.2,1895.1,1.4359]
[1741929990305,1.05554,1895.1,1895.0,0.72]
[1741929990509,2.36184,1895.1,1895.0,2.0895]
[1741929990800,2.36184,1895.1,1895.0,1.3695]
[1741929991307,1.05559,1895.0,1894.9,3.9258]
[1741929991502,2.36189,1895.0,1894.9,3.9258]
[1741929992899,2.36189,1895.0,1894.9,5.2953]
[1741929995110,2.36189,1895.0,1894.9,2.0875]
[1741929996800,0.6642,1895.2,1894.9,2.0875]
[1741929997008,1.05557,1895.1,1895.0,2.0814]
[1741929998714,1.05557,1895.1,1895.0,3.13699]
[1741929999518,1.3426,1895.2,1895.0,3.13699]
[1741929999815,1.3426,1895.2,1895.1,1.4342]
[1741930000609,2.39808,1895.2,1895.1,1.4342]
[1741930001521,3.11788,1895.2,1895.1,1.4342]
[1741930003523,3.78858,1895.2,1895.1,1.4342]
[1741930006822,2.7331,1895.2,1894.8,3.21572246]
[1741930007023,2.44115,1895.1,1894.9,1.4333]
[1741930007216,1.3856,1895.0,1894.9,1.4333]
[1741930007627,2.44119,1895.0,1894.9,1.4333]
[1741930019033,3.29857,1895.1,1894.9,1.4333]
[1741930019234,4.71467,1895.1,1895.0,0.6776]
[1741930019827,1.4161,1895.1,1895.0,0.6776]
[1741930020429,1.4161,1895.1,1895.0,2.0943]
[1741930020930,1.13798642,1895.4,1895.0,2.0943]
[1741930021135,1.13798642,1895.4,1895.3,4.26323]
[1741930021331,1.05518,1895.8,1895.5,1.05529]
[1741930021539,1.4076,1895.8,1895.6,0.6776]
[1741930021728,1.0552,1895.7,1895.6,2.0116]
[1741930022334,1.4076,1895.8,1895.6,2.0116]
[1741930022526,2.46278,1895.8,1895.7,1.334]
[1741930024134,1.4076,1895.8,1895.7,1.334]
[1741930025835,1.4076,1895.8,1895.7,2.0468]
[1741930026735,1.4076,1895.8,1895.7,3.102]
[1741930027435,1.4076,1895.8,1895.7,2.0468]
[1741930027638,1.4076,1895.8,1895.7,3.102]
[1741930028341,1.4076,1895.8,1895.7,2.0468]
[1741930028932,3.29708,1896.0,1895.7,2.0468]
[1741930029134,1.4017,1896.0,1895.8,1.3573]
[1741930029335,2.45676,1896.0,1895.8,1.3573]
[1741930029530,2.45676,1896.0,1895.8,2.41245]
[1741930029940,2.45676,1896.0,1895.9,1.3434]
[1741930030144,1.4017,1896.0,1895.9,1.3434]
[1741930030365,1.3564,1896.2,1896.0,1.05502]
[1741930030543,1.3564,1896.2,1896.1,2.0505]
[1741930030942,2.41133,1896.2,1896.1,2.0505]
[1741930035440,2.41133,1896.2,1896.1,1.3434]
[1741930035637,1.3564,1896.2,1895.9,3.2078]
[1741930035848,1.05504,1896.0,1895.9,3.2078]
[1741930036044,1.05504,1896.0,1895.9,4.5799]
[1741930036241,2.44844,1896.0,1895.9,4.5799]
[1741930037951,1.3934,1896.0,1895.9,4.5799]
[1741930039354,2.44844,1896.0,1895.9,4.5799]
[1741930046956,1.05504,1896.0,1895.9,4.5799]
[1741930047357,2.47004,1896.0,1895.9,4.5799]
[1741930047749,1.05504,1896.0,1895.9,4.5799]
[1741930048855,2.37464,1896.1,1895.9,5.63498]
[1741930049048,2.37464,1896.1,1896.0,1.3737]
[1741930049558,1.05504,1896.1,1896.0,1.3737]
[1741930052151,2.40214,1896.1,1896.0,1.3737]
[1741930052851,2.40208,1896.1,1896.0,1.3737]
[1741930056858,1.05509,1895.9,1895.8,0.00792246]
[1741930057059,1.05509,1895.9,1895.8,1.43962246]
[1741930057557,1.3817,1895.9,1895.8,1.43962246]
[1741930058358,1.3817,1895.9,1895.8,2.49477246]
[1741930058762,1.3817,1895.9,1895.8,1.43962246]
[1741930058957,1.3817,1895.9,1895.8,2.49477246]
[1741930059165,2.43679,1895.9,1895.8,1.43962246]
[1741930059351,1.3817,1895.9,1895.8,1.43962246]
[1741930059555,1.3817,1895.9,1895.8,2.49477246]
[1741930060164,2.43679,1895.9,1895.8,1.43962246]
[1741930060561,3.12759,1895.9,1895.8,1.43962246]
[1741930061060,7.7803,1895.9,1895.3,3.2078]
[1741930061267,1.05537,1895.4,1895.3,4.5066]
[1741930061463,1.05537,1895.4,1895.3,3.2078]
[1741930062458,1.4283,1895.5,1895.3,3.2078]
[1741930063363,1.05537,1895.4,1895.3,3.2078]
[1741930069761,3.6703,1895.5,1895.2,0.00792246]
[1741930069964,2.44963,1895.3,1895.2,0.00792246]
[1741930070563,1.05559,1895.0,1894.9,3.2078]
[1741930071472,1.05567,1894.9,1894.7,4.5563]
[1741930071767,2.44987,1894.9,1894.8,0.00792246]
[1741930071969,1.3942,1894.9,1894.8,0.00792246]
[1741930072269,0.00792246,1895.0,1894.8,0.00792246]
[1741930072569,0.00792246,1895.0,1894.8,2.40899246]
[1741930072770,0.00792246,1895.0,1894.9,1.3391]
[1741930072969,2.44181246,1895.0,1894.9,1.3391]
[1741930076975,1.38622246,1895.0,1894.9,2.39475]
[1741930077268,2.44181246,1895.0,1894.9,1.3391]
[1741930077681,1.38622246,1895.0,1894.9,1.3391]
[1741930077973,1.38622246,1895.0,1894.9,2.39475]
[1741930078175,2.44181246,1895.0,1894.9,1.3391]
[1741930079571,2.44181246,1895.0,1894.8,0.00792246]
[1741930079572,1.38622246,1895.0,1894.8,0.00792246]
[1741930079772,3.5621,1894.9,1894.8,1.33042246]
[1741930079967,4.61775,1894.9,1894.8,1.33042246]
[1741930080373,4.61775,1894.9,1894.8,2.02542246]
[1741930082169,4.61775,1894.9,1894.8,1.33042246]
[1741930082370,7.82555,1894.9,1894.8,1.33042246]
[1741930082772,7.82555,1894.9,1894.8,0.00792246]
[1741930085572,3.5621,1894.9,1894.8,0.00792246]
[1741930085777,4.61775,1894.9,1894.8,0.00792246]
[1741930086073,4.61775,1894.9,1894.8,0.72832246]
[1741930088783,2.37575,1894.9,1894.8,2.03362246]
[1741930089686,2.37575,1894.9,1894.8,1.31322246]
[1741930089982,3.09065,1894.9,1894.8,1.31322246]
[1741930091483,6.29845,1894.9,1894.8,1.31322246]
[1741930091685,5.2428,1894.9,1894.4,3.9047]
[1741930091878,1.05576,1894.7,1894.6,1.3627]
[1741930092076,1.05587,1894.5,1894.4,3.9047]
[1741930092281,2.7348,1894.6,1894.4,3.9047]
[1741930092585,1.75114,1894.6,1894.4,3.9047]
[1741930092887,1.05587,1894.5,1894.4,3.9047]
[1741930093283,2.41207,1894.5,1894.4,5.2674]
[1741930094489,1.3562,1894.5,1894.4,5.2674]
[1741930095495,2.243,1894.7,1894.4,5.2674]
[1741930095698,1.3016,1894.6,1894.5,1.3616]
[1741930096296,2.243,1894.7,1894.5,1.3616]
[1741930096587,1.3016,1894.7,1894.6,1.71822]
[1741930096776,0.00792246,1895.0,1894.6,3.8702]
[1741930096983,2.39633246,1895.0,1894.8,1.05568]
[1741930097290,3.30653246,1895.0,1894.9,1.9948]
[1741930099382,0.00792246,1895.0,1894.9,3.05045]
[1741930099683,0.00792246,1895.0,1894.9,1.9948]
[1741930099684,3.30651246,1895.0,1894.9,1.9948]
[1741930099989,2.25092246,1895.0,1894.9,1.9948]
[1741930100175,3.30651246,1895.0,1894.9,1.9948]
[1741930100792,2.25092246,1895.0,1894.9,1.9948]
[1741930101292,4.65171246,1895.0,1894.9,1.3324]
[1741930109483,1.05576,1894.7,1894.6,3.2078]
[1741930109897,1.05576,1894.7,1894.5,3.07497]
[1741930110087,1.05576,1894.7,1894.6,1.3116]
[1741930110589,1.05573,1894.8,1894.6,2.36741]
[1741930110792,1.05573,1894.8,1894.7,1.3116]
[1741930112493,2.46313,1894.8,1894.7,1.3116]
[1741930113996,1.05582,1894.6,1894.5,0.7075]
[1741930115297,2.39772,1894.6,1894.5,2.071]
[1741930117097,2.39772,1894.6,1894.5,1.3635]
[1741930118600,1.05587,1894.5,1894.4,4.5647]
[1741930118805,2.37397,1894.5,1894.4,4.5647]
[1741930119197,2.37397,1894.5,1894.4,3.2078]
[1741930119501,1.05593,1894.4,1894.3,0.00792246]
[1741930119703,2.42833,1894.4,1894.3,0.00792246]
[1741930119999,3.74643,1894.4,1894.3,1.35072246]
[1741930125897,3.06393,1894.4,1894.3,1.35072246]
[1741930133817,2.37403,1894.4,1894.3,1.35072246]
[1741930134201,1.3181,1894.4,1894.3,1.35072246]
[1741930134809,2.37403,1894.4,1894.3,1.35072246]
[1741930138611,1.3181,1894.4,1894.3,1.35072246]
[1741930138811,2.37403,1894.4,1894.3,1.35072246]
[1741930140216,1.05593,1894.4,1894.3,1.35072246]
[1741930140615,2.39993,1894.4,1894.3,1.35072246]
[1741930159120,1.344,1894.4,1894.3,1.35072246]
[1741930159321,3.2078,1894.5,1894.3,2.40668246]
[1741930159629,4.26367,1894.5,1894.4,1.408]
[1741930159929,5.69707,1894.5,1894.4,2.718]
[1741930161825,2.48927,1894.5,1894.4,2.718]
[1741930173847,2.14495412,1894.7,1894.5,1.05585]
[1741930174045,1.08919412,1894.7,1894.6,1.3081]
[1741930174339,1.05575,1894.8,1894.6,2.36391]
[1741930174548,1.05575,1894.8,1894.7,2.652]
[1741930175444,6.8216,1894.9,1894.7,2.652]
[1741930175642,6.8216,1894.9,1894.8,1.3081]
[1741930175841,5.63425,1894.9,1894.8,1.3081]
[1741930176450,3.2078,1894.9,1894.8,1.3081]
[1741930176749,5.56805,1894.9,1894.8,1.3081]
[1741930178548,5.56805,1894.9,1894.8,2.36381]
[1741930178549,4.5124,1894.9,1894.8,2.36381]
[1741930179051,4.5124,1894.9,1894.8,1.3081]
[1741930180142,5.56805,1894.9,1894.8,1.3081]
[1741930184050,3.2078,1894.9,1894.8,2.36381]
[1741930184254,3.2078,1894.9,1894.8,1.3081]
[1741930184548,3.2078,1894.9,1894.8,2.36381]
[1741930184749,3.2078,1894.9,1894.8,1.3081]
[1741930185054,4.26345,1894.9,1894.8,1.3081]
[1741930185251,5.56165,1894.9,1894.8,1.3081]
[1741930187154,2.35385,1894.9,1894.8,1.3081]
[1741930189647,3.02025,1894.9,1894.8,1.3081]
[1741930192253,1.05582,1894.6,1894.5,3.2078]
[1741930192855,0.7114,1894.8,1894.5,3.2078]
[1741930193045,1.05581,1894.7,1894.5,3.2078]
[1741930193549,0.7114,1894.8,1894.6,1.3283]
[1741930193754,1.76715,1894.8,1894.6,1.3283]
[1741930194147,1.05576,1894.7,1894.6,1.3283]
[1741930194347,0.7114,1894.8,1894.6,1.3283]
[1741930194557,1.76715,1894.8,1894.6,1.3283]
[1741930194756,1.3214,1894.7,1894.6,1.3283]
[1741930195558,2.37716,1894.7,1894.6,1.3283]
[1741930199758,5.58496,1894.7,1894.6,1.3283]
[1741930202867,4.5292,1894.7,1894.6,1.3283]
[1741930203066,5.58496,1894.7,1894.6,1.3283]
[1741930207065,4.5292,1894.7,1894.4,1.3593]
[1741930207377,3.07682,1894.6,1894.5,1.4293]
[1741930207766,1.3507,1894.6,1894.5,1.4293]
[1741930207967,1.3507,1894.6,1894.5,2.48517]
[1741930208171,3.2078,1894.7,1894.5,2.48517]
[1741930208475,4.5585,1894.7,1894.6,1.4293]
[1741930208673,5.61426,1894.7,1894.6,1.4293]
[1741930209466,4.5585,1894.7,1894.6,1.4293]
[1741930209667,3.2078,1894.7,1894.6,2.48512]
[1741930209869,0.00792246,1895.0,1894.6,2.48512]
[1741930209870,2.41832,1894.8,1894.6,2.48512]
[1741930210077,2.41832,1894.8,1894.7,2.6775]
[1741930212670,1.3626,1894.8,1894.7,2.6775]
[1741930212876,2.41831,1894.8,1894.7,2.6775]
[1741930214974,1.3626,1894.8,1894.7,2.6775]
[1741930216071,2.41831,1894.8,1894.7,2.6775]
[1741930216480,1.3626,1894.8,1894.7,2.6775]
[1741930216978,2.41831,1894.8,1894.7,2.6775]
[1741930218083,2.41831,1894.8,1894.7,2.0078]
[1741930218281,3.12351,1894.8,1894.7,1.3181]
[1741930218781,6.33131,1894.8,1894.7,1.3181]
[1741930220483,5.62611,1894.8,1894.7,1.3181]
[1741930220682,4.5704,1894.8,1894.7,1.3181]
[1741930222479,1.3626,1894.8,1894.7,1.3181]
[1741930223781,2.41831,1894.8,1894.7,1.3181]
[1741930225084,1.05565,1894.9,1894.7,1.3181]
[1741930225392,2.38385,1894.9,1894.8,1.4045]
[1741930225876,2.38385,1894.9,1894.8,2.8035]
[1741930227684,0.00792246,1895.0,1894.9,1.05565]
[1741930227984,0.00792246,1895.0,1894.9,2.38015]
[1741930231988,1.39082246,1895.0,1894.9,2.38015]
[1741930232785,1.39082246,1895.0,1894.9,1.3245]
[1741930232987,1.39082246,1895.0,1894.9,2.38015]
[1741930235094,0.00792246,1895.0,1894.9,2.38015]
[1741930235993,1.43722246,1895.0,1894.9,2.38015]
[1741930238997,0.00792246,1895.0,1894.9,2.38015]
[1741930258614,1.43892246,1895.0,1894.9,2.38015]
[1741930260020,0.00792246,1895.0,1894.9,2.38015]
[1741930264024,0.6806,1895.4,1895.3,1.05543]
[1741930264217,1.3792,1895.4,1895.3,4.26323]
[1741930264522,1.08722021,1895.5,1895.4,1.05537]
[1741930264726,1.3792,1895.6,1895.5,1.05532]
[1741930265017,1.3792,1895.6,1895.5,2.43372]
[1741930265912,0.00792246,1895.7,1895.5,4.5862]
[1741930266116,1.3792,1895.6,1895.5,4.26312]
[1741930268616,1.39862246,1895.7,1895.6,1.05526]
[1741930273230,2.45382246,1895.7,1895.6,1.05526]
[1741930274227,1.39862246,1895.7,1895.6,1.05526]
[1741930274421,2.45386246,1895.7,1895.5,4.26309]
[1741930274622,0.6495,1895.6,1895.5,4.26309]
[1741930274828,1.9822,1895.6,1895.5,4.26309]
[1741930275331,1.05532,1895.5,1895.4,0.00792246]
[1741930275627,2.38802,1895.5,1895.4,0.00792246]
[1741930275826,5.59582,1895.5,1895.4,0.00792246]
[1741930276023,2.38802,1895.5,1895.4,0.00792246]
[1741930277416,5.59582,1895.5,1895.4,0.00792246]
[1741930277616,4.62802,1895.5,1895.4,0.00792246]
[1741930278325,1.05548,1895.3,1895.0,1.05557]
[1741930278724,2.4379,1895.2,1895.0,1.05557]
[1741930278929,1.3824,1895.1,1895.0,1.05557]
[1741930280135,1.3824,1895.1,1894.9,5.62663246]
[1741930280933,2.0865,1895.1,1894.9,5.62663246]
[1741930281435,1.4325,1895.0,1894.9,5.62663246]
[1741930282431,1.4325,1895.0,1894.9,7.01173246]
[1741930284235,2.48809,1895.0,1894.9,5.28682246]
[1741930284426,1.4325,1895.0,1894.9,6.34247246]
[1741930284927,1.4325,1895.0,1894.9,5.28682246]
[1741930285130,1.4325,1895.0,1894.9,6.34247246]
[1741930286031,3.2078,1895.3,1894.9,5.28682246]
[1741930286238,1.4076,1895.2,1895.0,3.19225]
[1741930286428,1.4076,1895.2,1895.1,1.4274]
[1741930287639,1.05559,1895.0,1894.9,3.21572246]
[1741930287939,1.05559,1895.0,1894.9,4.64312246]
[1741930288138,2.45945,1895.1,1894.9,4.64312246]
[1741930288439,1.4076,1895.0,1894.9,3.21572246]
[1741930289037,1.4076,1895.0,1894.9,4.27137246]
[1741930290935,2.24,1895.2,1895.1,1.05554]
[1741930291137,2.24,1895.2,1894.9,3.21572246]
[1741930291432,1.70929,1895.2,1895.0,1.05555]
[1741930291637,2.40419,1895.2,1895.0,1.05555]
[1741930292034,1.3487,1895.2,1894.9,3.21572246]
[1741930292230,2.46746,1895.1,1894.9,4.27135246]
[1741930292428,1.3487,1895.2,1894.9,3.21572246]
[1741930292429,2.46749,1895.0,1894.9,3.21572246]
[1741930293339,1.4119,1895.0,1894.9,3.21572246]
[1741930293543,1.4119,1895.0,1894.9,4.27137246]
[1741930293935,1.4119,1895.0,1894.9,3.21572246]
[1741930294243,1.4119,1895.0,1894.9,4.27137246]
[1741930294735,0.6538,1895.2,1894.9,3.21572246]
[1741930294931,3.08259,1895.2,1895.0,1.05554]
[1741930295436,1.3733,1895.1,1895.0,1.05554]
[1741930300938,2.42885,1895.1,1894.9,4.27133246]
[1741930301339,1.3733,1895.1,1894.9,3.21572246]
[1741930301542,1.3759,1895.0,1894.9,4.27137246]
[1741930302437,1.3759,1895.0,1894.9,5.57517246]
[1741930304145,1.3759,1895.0,1894.9,2.36737246]
[1741930304347,1.3759,1895.0,1894.9,5.57517246]
[1741930305047,1.3759,1895.0,1894.9,2.36737246]
[1741930305239,1.3759,1895.0,1894.9,5.57517246]
[1741930305643,1.3759,1895.0,1894.9,2.36737246]
[1741930305846,2.43149,1895.0,1894.9,4.51952246]
[1741930306042,2.43149,1895.0,1894.9,5.57517246]
[1741930306244,1.3759,1895.0,1894.9,5.57517246]
[1741930308342,1.3759,1895.0,1894.9,2.36737246]
[1741930308736,2.43149,1895.0,1894.9,2.36737246]
[1741930309743,1.3759,1895.0,1894.9,2.36737246]
[1741930311050,2.43149,1895.0,1894.9,2.36737246]
[1741930311248,2.43149,1895.0,1894.9,1.31172246]
[1741930313255,1.3759,1895.0,1894.9,1.31172246]
[1741930313851,1.3759,1895.0,1894.9,2.36737246]
[1741930315351,2.43149,1895.0,1894.9,2.36737246]
[1741930315853,1.3759,1895.0,1894.9,2.36737246]
[1741930318757,2.43149,1895.0,1894.9,2.36737246]
[1741930319346,1.3759,1895.0,1894.9,2.36737246]
[1741930321054,2.43149,1895.0,1894.9,2.36737246]
[1741930321653,2.43149,1895.0,1894.9,1.31172246]
[1741930322151,2.43149,1895.0,1894.9,0.00792246]
[1741930322353,2.43149,1895.0,1894.5,3.2078]
[1741930322354,1.05582,1894.6,1894.5,3.2078]
[1741930322653,1.05594,1894.4,1894.2,4.26382]
[1741930322854,1.05594,1894.4,1894.3,1.3352]
[1741930323650,1.05595,1894.4,1894.2,4.27173246]
[1741930323847,1.05595,1894.4,1894.3,1.3352]
[1741930325053,1.05598,1894.3,1894.2,3.21572246]
[1741930325252,1.05598,1894.3,1894.2,4.61892246]
[1741930325253,1.73128,1894.3,1894.2,4.61892246]
[1741930325452,0.6753,1894.3,1894.2,4.61892246]
[1741930326052,0.6753,1894.3,1894.2,5.67496246]
[1741930326256,0.6753,1894.3,1894.2,4.61892246]
[1741930326448,1.73128,1894.3,1894.2,4.61892246]
[1741930326655,1.05595,1894.4,1894.2,5.67496246]
[1741930326849,1.05595,1894.4,1894.3,1.4032]
[1741930327352,2.44381246,1894.5,1894.3,2.45916]
[1741930327656,1.38792246,1894.5,1894.3,2.45916]
[1741930327852,0.72062246,1894.5,1894.4,3.12433]
[1741930328157,0.72062246,1894.5,1894.4,2.0684]
[1741930328454,0.00792246,1894.5,1894.4,3.12433]
[1741930328652,0.00792246,1894.5,1894.4,6.33213]
[1741930330161,0.00792246,1894.5,1894.4,5.2762]
[1741930330364,0.00792246,1894.5,1894.4,6.33213]
[1741930336959,0.00792246,1894.5,1894.4,7.00563]
[1741930337361,3.2078,1894.9,1894.4,7.00563]
[1741930337766,3.2078,1894.9,1894.8,1.05571]
[1741930338075,3.99371,1895.0,1894.8,1.05571]
[1741930338277,3.99371,1895.0,1894.9,1.4001]
[1741930342380,5.34061,1895.0,1894.9,1.4001]
[1741930349686,8.54841,1895.0,1894.9,1.4001]
[1741930354100,7.4928,1895.0,1894.7,0.6735]
[1741930354283,3.1032,1894.9,1894.8,1.2985]
[1741930357696,1.05582,1894.6,1894.5,3.2078]
[1741930357887,1.05598,1894.4,1894.2,3.21572246]
[1741930358200,1.05598,1894.4,1894.2,3.93572246]
[1741930358389,1.05598,1894.4,1894.3,1.3648]
[1741930358791,1.05598,1894.4,1894.2,3.21572246]
[1741930358792,1.05598,1894.3,1894.2,3.21572246]
[1741930358986,0.6618,1894.3,1894.2,0.00792246]
[1741930359193,2.24,1894.4,1894.2,1.06396246]
[1741930359496,3.29595,1894.4,1894.3,1.3648]
[1741930362596,3.29593,1894.4,1894.3,1.3648]
[1741930363596,2.24,1894.4,1894.3,1.3648]
[1741930363799,5.66979,1894.7,1894.4,1.05588]
[1741930363995,7.91079,1894.7,1894.5,0.6898]
[1741930364197,1.05582,1894.6,1894.5,2.7899]
[1741930368499,1.05582,1894.6,1894.5,1.4105]
[1741930368703,1.05593,1894.4,1894.3,0.6792]
[1741930369408,1.05593,1894.4,1894.3,2.0542]
[1741930373102,1.05593,1894.4,1894.3,1.375]
[1741930373604,3.83343,1894.4,1894.3,1.375]
[1741930374413,2.47693,1894.4,1894.3,1.375]
[1741930374608,2.47693,1894.4,1894.3,2.0305]
[1741930376909,1.421,1894.4,1894.3,2.0305]
[1741930377098,2.47693,1894.4,1894.3,2.0305]
[1741930380512,1.421,1894.4,1894.3,2.0305]
[1741930380905,2.47693,1894.4,1894.3,2.0305]
[1741930381412,2.47693,1894.4,1894.3,3.08648]
[1741930381609,1.05593,1894.4,1894.3,3.08648]
[1741930382106,1.05593,1894.4,1894.3,2.0305]
[1741930384517,1.3255,1894.5,1894.3,3.08648]
[1741930384719,2.38141,1894.5,1894.4,1.39]
[1741930402541,2.44515572,1894.7,1894.4,1.39]
[1741930402729,1.08865572,1894.7,1894.6,4.26362]
[1741930402935,1.4298,1894.9,1894.7,1.05576]
[1741930403132,3.29563,1895.0,1894.8,2.0097]
[1741930403333,4.72543,1895.0,1894.9,1.3039]
[1741930403931,0.00792246,1895.1,1895.0,1.05559]
[1741930404137,3.2078,1895.4,1895.2,1.05545]
[1741930404342,4.26321,1895.4,1895.3,0.7058]
[1741930405145,3.2078,1895.4,1895.3,2.0241]
[1741930405338,0.00792246,1895.5,1895.3,6.2873]